bitfinex-derivatives/quotes_SOLF0:USTF0_20250731
["timestamp","ask_amount","ask_price","bid_price","bid_amount"]
[1753988246878,3.11,177.47,177.46,5.6356]
[1753988247283,5.6342,177.51,177.47,3.1]
[1753988247480,3.11,177.49,177.47,8.7353]
[1753988247784,3.11,177.49,177.48,3.1]
[1753988248392,3.11,177.5,177.47,5.6351]
[1753988248585,3.11,177.5,177.44,3.3]
[1753988248891,3.11,177.47,177.44,3.3]
[1753988249188,6.52044021,177.5,177.42,5.6367]
[1753988249389,3.11,177.49,177.41,3.3]
[1753988249786,5.6356,177.47,177.43,5.6363]
[1753988249993,3.11,177.46,177.43,5.6363]
[1753988250186,3.11,177.44,177.4,6.52044021]
[1753988250393,3.11,177.45,177.42,5.6369]
[1753988250594,3.11,177.44,177.42,3.3]
[1753988250783,3.11,177.44,177.43,5.6365]
[1753988250986,3.11,177.44,177.43,8.9365]
[1753988252890,3.11,177.43,177.42,5.6368]
[1753988253083,3.11,177.43,177.42,8.9368]
[1753988253288,5.6355,177.47,177.42,3.3]
[1753988253590,3.11,177.45,177.43,3.3]
[1753988253791,3.11,177.45,177.4,6.52044021]
[1753988253991,3.11,177.45,177.44,3.3]
[1753988254187,6.52044021,177.5,177.41,3.3]
[1753988254388,3.11,177.44,177.42,3.3]
[1753988254692,3.11,177.44,177.4,3.3]
[1753988255199,3.11,177.44,177.38,9.82044021]
[1753988255489,5.6368,177.43,177.39,5.6377]
[1753988255692,3.11,177.42,177.37,3.3]
[1753988255902,3.11,177.42,177.35,3.3]
[1753988256085,3.11,177.38,177.36,8.9386]
[1753988256289,3.11,177.38,177.36,3.3]
[1753988256491,3.11,177.38,177.37,8.9385]
[1753988256797,5.6375,177.4,177.34,6.52044021]
[1753988256798,3.11,177.45,177.35,3.3]
[1753988257089,3.11,177.39,177.37,8.9382]
[1753988257295,3.11,177.39,177.34,3.3]
[1753988257692,3.11,177.4,177.23,3.3]
[1753988257892,3.11,177.4,177.3,3.3]
[1753988258088,5.6391,177.35,177.31,5.6401]
[1753988258290,3.11,177.4,177.3,6.52044021]
[1753988258489,3.11,177.38,177.3,6.52044021]
[1753988258689,3.11,177.34,177.31,3.3]
[1753988258886,5.6393,177.35,177.32,3.3]
[1753988258887,3.11,177.33,177.32,3.3]
[1753988259093,3.11,177.33,177.28,9.82044021]
[1753988259395,6.52044021,177.39,177.28,9.82044021]
[1753988259396,3.11,177.38,177.28,9.82044021]
[1753988259703,3.11,177.38,177.31,3.3]
[1753988260687,3.11,177.37,177.28,9.82044021]
[1753988261294,3.11,177.37,177.27,9.82044021]
[1753988261497,3.11,177.37,177.28,3.3]
[1753988261799,5.6398,177.33,177.29,5.6407]
[1753988261998,3.11,177.31,177.3,3.3]
[1753988262201,3.11,177.31,177.29,8.9407]
[1753988262502,3.11,177.3,177.29,3.3]
[1753988262697,6.52044021,177.36,177.27,6.52044021]
[1753988262904,3.11,177.35,177.27,3.3]
[1753988263205,3.11,177.35,177.27,8.9414]
[1753988263798,3.11,177.35,177.27,6.52044021]
[1753988264098,3.11,177.35,177.28,3.3]
[1753988264297,8.7492,177.35,177.31,5.6403]
[1753988264503,5.6392,177.35,177.31,5.6403]
[1753988264698,378.86,177.42,177.33,6.52044021]
[1753988264699,3.11,177.39,177.33,6.52044021]
[1753988264900,3.11,177.39,177.34,3.3]
[1753988265200,3.11,177.39,177.31,6.52044021]
[1753988265398,3.11,177.39,177.32,3.3]
[1753988265602,3.11,177.35,177.33,3.3]
[1753988265792,3.11,177.41,177.32,3.3]
[1753988265993,3.11,177.41,177.21,17.80694021]
[1753988265994,5.6381,177.39,177.36,3.3]
[1753988266197,378.86,177.42,177.35,6.52044021]
[1753988266397,378.86,177.42,177.36,3.3]
[1753988266698,3.11,177.4,177.38,3.3]
[1753988266900,378.86,177.42,177.38,3.3]
[1753988267098,3.11,177.41,177.39,3.3]
[1753988268097,3.11,177.41,177.4,3.3]
[1753988268294,3.11,177.46,177.4,5.6374]
[1753988268502,3.11,177.44,177.42,3.3]
[1753988268904,3.11,177.43,177.41,6.52044021]
[1753988269104,3.11,177.43,177.41,9.82044021]
[1753988269310,4.68330835,177.47,177.39,9.82044021]
[1753988269497,3.11,177.41,177.39,12.15824021]
[1753988269699,3.11,177.41,177.4,3.3]
[1753988270205,3.11,177.45,177.38,3.3]
[1753988270403,3.11,177.39,177.36,9.82044021]
[1753988270603,3.11,177.39,177.37,3.3]
[1753988270804,3.11,177.38,177.36,3.3]
[1753988271003,3.11,177.44,177.36,3.3]
[1753988271206,3.11,177.42,177.36,3.3]
[1753988271405,3.11,177.4,177.36,6.52044021]
[1753988271604,3.11,177.46,177.39,3.3]
[1753988271908,7.28124763,177.45,177.43,9.82044021]
[1753988272206,3.11,177.45,177.43,9.82044021]
[1753988272402,3.11,177.46,177.43,15.45694021]
[1753988272607,4.17308778,177.45,177.44,3.3]
[1753988273001,4.17308778,177.45,177.44,8.9362]
[1753988273204,4.17308778,177.45,177.44,3.3]
[1753988273708,7.28308778,177.45,177.44,3.3]
[1753988273907,7.28308778,177.45,177.43,9.82044021]
[1753988274108,3.11,177.45,177.43,9.82044021]
[1753988274301,3.11,177.44,177.43,9.82044021]
[1753988275306,3.11,177.45,177.43,9.82044021]
[1753988276108,3.11,177.45,177.44,3.3]
[1753988276307,7.28831088,177.45,177.44,3.3]
[1753988276910,3.11,177.45,177.44,3.3]
[1753988277110,5.6359,177.45,177.43,6.52044021]
[1753988277311,104.32,177.51,177.43,6.52044021]
[1753988277312,3.11,177.44,177.43,6.52044021]
[1753988277701,3.11,177.49,177.43,9.82044021]
[1753988278009,3.11,177.47,177.43,9.82044021]
[1753988278208,4.18031007,177.46,177.32,17.80014021]
[1753988278408,3.22,177.44,177.4,6.52044021]
[1753988278709,3.22,177.42,177.4,9.61044021]
[1753988279102,3.22,177.42,177.4,6.52044021]
[1753988279411,3.22,177.42,177.41,3.09]
[1753988279616,3.22,177.44,177.41,3.09]
[1753988279810,3.22,177.44,177.42,3.09]
[1753988280004,3.22,177.43,177.42,3.09]
[1753988280312,7.90330835,177.48,177.44,3.09]
[1753988280517,7.40674162,177.47,177.45,3.09]
[1753988280812,3.22,177.48,177.46,3.09]
[1753988281014,4.18613701,177.47,177.46,3.09]
[1753988281213,13.04133701,177.47,177.45,3.09]
[1753988281516,4.18613701,177.46,177.45,3.09]
[1753988282210,7.40613701,177.46,177.45,3.09]
[1753988282414,13.04173701,177.46,177.44,9.61044021]
[1753988282714,3.22,177.45,177.42,9.61044021]
[1753988282916,3.22,177.44,177.42,6.52044021]
[1753988283108,3.22,177.43,177.4,6.52044021]
[1753988283313,7.90330835,177.48,177.42,9.61044021]
[1753988283506,5.6358,177.46,177.42,6.52044021]
[1753988283709,4.19388599,177.45,177.44,6.52044021]
[1753988283911,3.22,177.48,177.45,3.09]
[1753988284107,4.19370827,177.47,177.46,3.09]
[1753988284315,4.19370827,177.47,177.44,9.61044021]
[1753988284513,7.41370827,177.46,177.44,9.61044021]
[1753988284714,3.22,177.46,177.45,3.09]
[1753988284915,3.22,177.48,177.45,3.09]
[1753988285111,7.41695846,177.47,177.45,3.09]
[1753988285307,7.41695846,177.46,177.44,6.52044021]
[1753988285507,3.22,177.45,177.44,9.61044021]
[1753988285714,3.22,177.46,177.44,15.24664021]
[1753988285916,3.22,177.46,177.44,6.52044021]
[1753988286116,3.22,177.46,177.44,9.61044021]
[1753988286619,3.22,177.47,177.45,3.09]
[1753988286820,4.20220028,177.46,177.45,3.09]
[1753988287022,4.20220028,177.46,177.45,8.7258]
[1753988287321,3.22,177.49,177.45,3.09]
[1753988287625,7.42323706,177.48,177.47,3.09]
[1753988288716,4.20323706,177.48,177.47,8.7252]
[1753988288921,4.20323706,177.48,177.47,3.09]
[1753988289622,7.42323706,177.48,177.47,3.09]
[1753988289817,4.20323706,177.48,177.47,3.09]
[1753988290823,4.20323706,177.48,177.47,8.7252]
[1753988291025,4.20323706,177.48,177.45,6.52044021]
[1753988291230,3.22,177.46,177.45,5.6359]
[1753988291425,109.00330835,177.51,177.45,3.09]
[1753988291627,7.4272825,177.5,177.47,6.52044021]
[1753988291819,4.2072825,177.49,177.48,3.09]
[1753988292225,3.22,177.48,177.37,3.09]
[1753988292421,3.22,177.5,177.44,6.52044021]
[1753988292628,7.42757483,177.49,177.48,3.09]
[1753988292829,4.20757483,177.49,177.48,15.24534021]
[1753988293131,3.22,177.51,177.49,3.09]
[1753988293431,104.26,177.52,177.5,6.52044021]
[1753988293631,109.07658251,177.56,177.5,6.52044021]
[1753988293827,3.22,177.54,177.51,3.09]
[1753988294131,4.2071668,177.53,177.52,3.09]
[1753988294325,4.2071668,177.53,177.52,9.61044021]
[1753988294532,4.2071668,177.53,177.52,15.24404021]
[1753988294730,107.58,177.56,177.54,3.09]
[1753988294932,4.20623362,177.55,177.54,9.61044021]
[1753988295432,3.22,177.53,177.52,6.52044021]
[1753988295833,3.22,177.53,177.51,9.61044021]
[1753988296028,3.22,177.51,177.42,9.61044021]
[1753988296234,115.06553274,177.52,177.43,3.09]
[1753988296235,3.22,177.48,177.43,3.09]
[1753988297026,3.22,177.48,177.44,3.09]
[1753988297336,3.22,177.51,177.43,3.09]
[1753988297530,8.8551,177.48,177.43,3.09]
[1753988297837,3.22,177.49,177.46,3.09]
[1753988298038,8.8542,177.51,177.49,3.09]
[1753988298337,3.22,177.49,177.47,3.09]
[1753988299231,3.22,177.48,177.47,3.09]
[1753988299430,3.22,177.48,177.45,5.6356]
[1753988299734,8.8549,177.48,177.46,3.09]
[1753988300228,5.6352,177.47,177.43,5.6365]
[1753988300434,8.8552,177.47,177.44,3.09]
[1753988300634,8.8552,177.47,177.43,5.6365]
[1753988300835,8.8552,177.47,177.45,3.09]
[1753988302239,3.22,177.47,177.45,3.09]
[1753988304339,3.22,177.47,177.46,3.09]
[1753988305040,3.22,177.46,177.44,3.09]
[1753988305733,3.22,177.48,177.43,3.09]
[1753988306039,3.22,177.51,177.43,3.09]
[1753988306241,5.6355,177.47,177.43,3.09]
[1753988306437,8.8555,177.47,177.43,3.09]
[1753988306638,8.8558,177.46,177.44,3.09]
[1753988306947,3.22,177.49,177.42,3.09]
[1753988307331,4.21195289,177.48,177.38,6.52044021]
[1753988307534,4.21229276,177.47,177.36,6.52044021]
[1753988307738,3.22,177.45,177.37,3.09]
[1753988308129,3.22,177.45,177.39,3.09]
[1753988308536,3.22,177.45,177.41,8.847]
[1753988308743,3.22,177.45,177.41,3.21]
[1753988309131,3.22,177.45,177.4,6.52044021]
[1753988309342,3.22,177.45,177.43,3.21]
[1753988309742,4.71658251,177.5,177.43,3.21]
[1753988309943,2.99,177.46,177.44,3.21]
[1753988310237,2.99,177.45,177.44,3.21]
[1753988310443,2.99,177.44,177.42,15.36724021]
[1753988310635,2.99,177.44,177.42,6.52044021]
[1753988310839,5.6355,177.47,177.43,3.21]
[1753988311039,4.22128148,177.46,177.44,3.21]
[1753988311236,2.99,177.48,177.46,3.21]
[1753988311639,2.99,177.48,177.46,8.8455]
[1753988312338,2.99,177.47,177.46,8.8455]
[1753988312733,109.05658251,177.52,177.32,67.42044021]
[1753988312945,7.21356436,177.51,177.49,3.21]
[1753988313140,2.99,177.51,177.5,6.52044021]
[1753988313348,2.99,177.51,177.5,12.15474021]
[1753988313349,7.21396483,177.51,177.5,12.15474021]
[1753988313547,7.21396483,177.51,177.5,15.36474021]
[1753988314047,4.22396483,177.51,177.5,9.73044021]
[1753988314238,2.99,177.52,177.51,3.21]
[1753988314439,7.21325737,177.52,177.51,3.21]
[1753988314645,7.21325737,177.52,177.5,6.52044021]
[1753988314947,7.21325737,177.51,177.5,6.52044021]
[1753988315642,2.99,177.5,177.48,9.73044021]
[1753988316046,5.6337,177.52,177.48,6.52044021]
[1753988316250,7.21523269,177.51,177.49,3.21]
[1753988316438,2.99,177.5,177.49,3.21]
[1753988316847,2.99,177.5,177.48,6.52044021]
[1753988317047,2.99,177.5,177.48,9.73044021]
[1753988317254,2.99,177.49,177.48,9.73044021]
[1753988317946,2.99,177.51,177.49,3.21]
[1753988318249,2.99,177.53,177.51,3.21]
[1753988318450,4.22417401,177.52,177.51,3.21]
[1753988318651,4.71658251,177.56,177.51,3.21]
[1753988318652,2.99,177.56,177.51,3.21]
[1753988318947,4.22370274,177.55,177.54,8.843]
[1753988319244,6.27269133,177.61,177.43,50.52044021]
[1753988319245,2.99,177.61,177.58,3.21]
[1753988319447,7.20949911,177.6,177.58,15.36214021]
[1753988319647,2.99,177.64,177.58,6.52044021]
[1753988319838,4.2188392,177.63,177.54,6.52044021]
[1753988320041,5.6299,177.64,177.55,3.21]
[1753988320244,8.6199,177.64,177.55,3.21]
[1753988320442,5.6299,177.64,177.55,3.21]
[1753988320649,2.99,177.63,177.59,5.6311]
[1753988320942,2.99,177.63,177.62,6.52044021]
[1753988321152,2.99,177.63,177.62,9.73044021]
[1753988321645,2.99,177.68,177.62,6.52044021]
[1753988321852,2.99,177.66,177.62,9.73044021]
[1753988322046,2.99,177.64,177.62,9.73044021]
[1753988322449,2.99,177.63,177.62,9.73044021]
[1753988322644,2.99,177.64,177.62,9.73044021]
[1753988322844,8.6199,177.64,177.62,9.73044021]
[1753988323351,5.6299,177.64,177.62,9.73044021]
[1753988323543,2.99,177.63,177.62,9.73044021]
[1753988323744,2.99,177.65,177.62,6.52044021]
[1753988323948,2.99,177.65,177.63,3.21]
[1753988324149,2.99,177.63,177.62,6.52044021]
[1753988324441,2.99,177.63,177.62,9.73044021]
[1753988325046,2.99,177.65,177.62,9.73044021]
[1753988325249,2.99,177.67,177.62,6.52044021]
[1753988325453,104.48,177.7,177.63,3.21]
[1753988325454,2.99,177.69,177.63,3.21]
[1753988325752,2.99,177.67,177.63,3.21]
[1753988326153,5.6294,177.66,177.63,3.21]
[1753988326455,2.99,177.65,177.64,9.73044021]
[1753988326651,2.99,177.68,177.66,3.21]
[1753988326957,8.6185,177.69,177.67,3.21]
[1753988327142,8.6185,177.69,177.68,3.21]
[1753988327349,5.6285,177.69,177.66,9.73044021]
[1753988327653,2.99,177.68,177.67,3.21]
[1753988328451,2.99,177.7,177.68,3.21]
[1753988328656,2.99,177.7,177.69,6.52044021]
[1753988328955,8.6179,177.7,177.69,6.52044021]
[1753988329153,2.99,177.7,177.69,6.52044021]
[1753988329856,2.99,177.73,177.67,6.52044021]
[1753988330052,2.99,177.7,177.67,9.73044021]
[1753988330251,2.99,177.69,177.67,9.73044021]
[1753988330448,2.99,177.7,177.67,15.35924021]
[1753988330659,2.99,177.69,177.67,15.35924021]
[1753988331556,2.99,177.69,177.67,9.73044021]
[1753988331756,2.99,177.68,177.67,3.21]
[1753988331953,2.99,177.67,177.65,3.21]
[1753988332148,2.99,177.67,177.66,12.14964021]
[1753988332347,2.99,177.69,177.66,12.14964021]
[1753988332560,2.99,177.68,177.67,3.21]
[1753988332856,2.99,177.7,177.68,3.21]
[1753988333359,2.99,177.7,177.68,9.73044021]
[1753988333554,2.99,177.73,177.68,9.73044021]
[1753988334259,2.99,177.7,177.68,9.73044021]
[1753988334451,2.99,177.69,177.68,9.73044021]
[1753988335048,2.99,177.69,177.68,6.52044021]
[1753988336755,5.6282,177.7,177.68,3.99143439]
[1753988337455,2.99,177.69,177.68,7.20143439]
[1753988339455,2.99,177.69,177.68,3.99143439]
[1753988340053,8.6183,177.69,177.68,3.99143439]
[1753988340253,2.99,177.69,177.64,7.10143439]
[1753988340457,5.6288,177.68,177.64,12.73093439]
[1753988340653,5.6288,177.68,177.64,7.10143439]
[1753988340859,3.27,177.72,177.66,7.10143439]
[1753988341055,3.27,177.67,177.66,3.99143439]
[1753988341361,3.27,177.67,177.57,44.0]
[1753988341665,3.27,177.67,177.62,5.6302]
[1753988342067,3.27,177.67,177.63,5.6301]
[1753988342267,3.27,177.67,177.63,9.62153439]
[1753988342463,3.27,177.66,177.63,3.99143439]
[1753988343170,8.7080169,177.73,177.65,3.99143439]
[1753988343460,3.99143439,177.67,177.59,3.99143439]
[1753988343664,3.27,177.64,177.56,7.10143439]
[1753988343867,3.99143439,177.63,177.54,7.10143439]
[1753988344058,3.27,177.6,177.54,7.10143439]
[1753988344255,3.99143439,177.65,177.56,3.99143439]
[1753988344468,3.27,177.59,177.57,3.11]
[1753988344656,3.27,177.59,177.58,5.6316]
[1753988344856,3.27,177.59,177.58,8.7416]
[1753988345061,3.27,177.61,177.6,3.11]
[1753988345271,3.27,177.63,177.6,3.99143439]
[1753988345467,3.27,177.63,177.62,3.11]
[1753988345857,3.27,177.65,177.62,7.10143439]
[1753988346057,3.27,177.65,177.64,7.10143439]
[1753988346360,3.27,177.68,177.64,3.99143439]
[1753988346565,4.71658251,177.72,177.67,3.99143439]
[1753988346763,4.17526615,177.71,177.67,3.99143439]
[1753988346963,5.6285,177.69,177.67,3.99143439]
[1753988347162,7.44526615,177.68,177.67,3.99143439]
[1753988347964,3.27,177.68,177.67,3.99143439]
[1753988348166,3.27,177.68,177.67,9.62033439]
[1753988348365,3.27,177.68,177.67,3.99143439]
[1753988354272,7.45853426,177.68,177.67,3.99143439]
[1753988354575,3.27,177.68,177.67,3.99143439]
[1753988355270,8.8986,177.68,177.67,3.99143439]
[1753988356473,13.09345323,177.68,177.67,3.99143439]
[1753988357578,8.8989,177.67,177.66,3.99143439]
[1753988357772,3.27,177.66,177.59,5.6311]
[1753988357975,3.27,177.63,177.6,3.99143439]
[1753988358178,3.27,177.67,177.62,3.99143439]
[1753988358380,3.27,177.65,177.62,12.73173439]
[1753988358574,7.46928994,177.64,177.62,12.73173439]
[1753988358775,4.71658251,177.69,177.63,3.11]
[1753988359077,3.27,177.66,177.65,3.11]
[1753988359477,7.47225912,177.66,177.65,3.11]
[1753988360081,7.47225912,177.66,177.64,3.99143439]
[1753988360276,7.47225912,177.65,177.64,7.10143439]
[1753988360882,7.47225912,177.65,177.64,12.73133439]
[1753988361075,4.20225912,177.65,177.64,3.99143439]
[1753988361281,7.47225912,177.65,177.64,3.99143439]
[1753988361983,7.47225912,177.65,177.62,3.99143439]
[1753988361984,3.27,177.64,177.62,3.99143439]
[1753988362276,7.47225912,177.63,177.62,3.99143439]
[1753988362873,4.20225912,177.63,177.62,7.10143439]
[1753988363073,4.72538255,177.73,177.62,7.98286878]
[1753988363277,6.27269133,177.83,177.73,3.11]
[1753988363482,16.43539595,177.93,177.83,3.11]
[1753988363483,6.27269133,177.93,177.83,3.11]
[1753988363685,2.90765662,177.92,177.87,3.99143439]
[1753988363888,378.38,177.94,177.89,3.99143439]
[1753988364185,104.88,177.93,177.87,3.99143439]
[1753988364586,5.622,177.89,177.87,3.99143439]
[1753988364778,378.38,177.94,177.87,7.10143439]
[1753988364986,378.38,177.94,177.92,6.48777572]
[1753988365183,3.27,177.93,177.92,6.48777572]
[1753988366489,8.8907,177.93,177.92,6.48777572]
[1753988366786,3.27,177.93,177.88,6.48777572]
[1753988366980,3.27,177.89,177.88,6.48777572]
[1753988367185,110.5017,177.9,177.86,6.48777572]
[1753988367386,3.27,177.88,177.86,9.59777572]
[1753988367886,3.27,177.88,177.87,3.11]
[1753988368785,113.5317,177.9,177.86,6.48777572]
[1753988369088,113.5317,177.9,177.88,3.12]
[1753988369388,8.6519,177.89,177.86,9.60777572]
[1753988369589,3.03,177.88,177.87,3.12]
[1753988370483,8.6523,177.88,177.87,3.12]
[1753988370687,3.03,177.88,177.87,3.12]
[1753988371387,104.88,177.9,177.86,6.48777572]
[1753988371586,3.03,177.89,177.86,6.48777572]
[1753988371783,5.6226,177.87,177.86,6.48777572]
[1753988371986,3.03,177.89,177.8,6.48777572]
[1753988372189,111.36777572,177.9,177.78,3.12]
[1753988372190,6.48777572,177.86,177.78,3.12]
[1753988372392,3.03,177.85,177.78,3.12]
[1753988372686,3.03,177.83,177.78,3.12]
[1753988372989,3.03,177.83,177.77,3.12]
[1753988373189,3.03,177.85,177.8,6.48777572]
[1753988373493,107.79,177.84,177.83,3.12]
[1753988373686,104.76,177.84,177.82,6.48777572]
[1753988373990,3.03,177.83,177.82,6.48777572]
[1753988374188,3.03,177.83,177.82,9.60777572]
[1753988375292,107.79,177.83,177.82,9.60777572]
[1753988377492,3.03,177.82,177.77,3.12]
[1753988378193,3.03,177.77,177.75,9.60777572]
[1753988378387,107.71,177.77,177.75,3.12]
[1753988378593,104.68,177.77,177.74,3.12]
[1753988378788,3.03,177.79,177.75,6.48777572]
[1753988378990,104.66,177.78,177.77,3.12]
[1753988379594,107.69,177.78,177.77,3.12]
[1753988379797,3.03,177.84,177.78,3.12]
[1753988379998,107.69,177.83,177.81,3.12]
[1753988380389,3.03,177.82,177.81,3.12]
[1753988380590,107.69,177.82,177.81,3.12]
[1753988381190,104.64,177.82,177.81,3.12]
[1753988381391,104.64,177.82,177.78,3.12]
[1753988381691,3.03,177.81,177.78,3.12]
[1753988382089,3.03,177.8,177.78,3.12]
[1753988382602,8.655,177.8,177.78,3.12]
[1753988382801,3.03,177.79,177.78,3.12]
[1753988383190,3.03,177.77,177.74,12.11437572]
[1753988383393,104.64,177.82,177.74,6.48777572]
[1753988383599,3.03,177.81,177.75,3.12]
[1753988383994,8.6552,177.79,177.74,12.11437572]
[1753988384197,3.03,177.78,177.77,3.12]
[1753988385198,3.03,177.79,177.78,3.12]
[1753988385401,104.64,177.79,177.78,6.48777572]
[1753988385897,3.03,177.84,177.8,3.12]
[1753988386102,104.66,177.83,177.8,6.48777572]
[1753988386301,110.2839,177.83,177.82,3.12]
[1753988386602,113.3139,177.83,177.82,3.12]
[1753988386804,113.3139,177.83,177.8,6.48777572]
[1753988387002,8.6539,177.83,177.8,6.48777572]
[1753988387204,113.3139,177.83,177.81,3.12]
[1753988387703,104.66,177.83,177.78,6.48777572]
[1753988387904,3.03,177.82,177.76,6.48777572]
[1753988388103,3.03,177.82,177.78,3.12]
[1753988388311,3.03,177.83,177.78,6.48777572]
[1753988388606,104.64,177.83,177.81,3.12]
[1753988388806,104.64,177.83,177.82,3.12]
[1753988389008,107.67,177.84,177.82,3.12]
[1753988389307,113.2937,177.84,177.82,3.12]
[1753988389904,3.03,177.83,177.8,6.48777572]
[1753988390205,3.03,177.82,177.81,3.12]
[1753988390407,5.6239,177.83,177.81,3.12]
[1753988390595,8.6539,177.83,177.81,3.12]
[1753988390798,8.6539,177.83,177.82,3.12]
[1753988391602,110.2635,177.84,177.82,3.12]
[1753988391811,110.2235,177.84,177.83,3.12]
[1753988392003,113.2535,177.84,177.83,3.12]
[1753988392505,8.6535,177.84,177.83,3.12]
[1753988392706,113.2135,177.84,177.83,3.12]
[1753988392906,113.2135,177.84,177.81,3.12]
[1753988392907,8.6539,177.83,177.81,3.12]
[1753988393111,3.03,177.85,177.81,3.12]
[1753988393407,104.54,177.83,177.82,3.12]
[1753988393603,3.03,177.85,177.8,12.11237572]
[1753988393604,3.03,177.85,177.8,6.48777572]
[1753988393903,3.03,177.88,177.85,3.12]
[1753988394206,9.51777572,177.93,177.87,3.12]
[1753988394404,3.03,177.84,177.83,3.12]
[1753988394600,5.6234,177.85,177.81,6.48777572]
[1753988394601,104.54,177.85,177.84,3.12]
[1753988396002,110.1632,177.85,177.84,3.12]
[1753988396410,5.6237,177.84,177.82,3.12]
[1753988396607,8.6537,177.84,177.83,3.12]
[1753988397108,5.6237,177.84,177.83,3.12]
[1753988397498,110.1633,177.85,177.83,3.12]
[1753988397903,110.1633,177.85,177.84,3.12]
[1753988398408,113.3133,177.85,177.84,3.12]
[1753988398603,5.6237,177.84,177.82,3.3]
[1753988398810,3.15,177.82,177.8,3.3]
[1753988399013,3.15,177.81,177.8,3.3]
[1753988399207,113.2745,177.81,177.8,3.3]
[1753988400111,104.5,177.81,177.8,7.28677265]
[1753988400406,3.15,177.92,177.81,3.3]
[1753988400607,3.15,177.93,177.9,3.98677265]
[1753988400806,6.48825793,178.0,177.91,3.3]
[1753988401009,5.621,177.92,177.9,6.48825793]
[1753988401607,104.66,177.93,177.88,9.78825793]
[1753988401806,104.66,177.93,177.76,6.48825793]
[1753988401807,3.15,177.89,177.86,6.48825793]
[1753988402013,3.15,177.87,177.84,6.48825793]
[1753988402214,8.7729,177.86,177.84,3.3]
[1753988402708,104.66,177.88,177.84,3.3]
[1753988402911,3.15,177.87,177.83,3.3]
[1753988403110,3.15,177.86,177.83,3.3]
[1753988403412,104.66,177.88,177.85,3.3]
[1753988403413,3.15,177.88,177.85,3.3]
[1753988403612,3.15,177.9,177.87,3.3]
[1753988403814,5.6224,177.88,177.87,3.3]
[1753988404007,104.76,177.88,177.87,3.3]
[1753988404602,3.15,177.88,177.87,3.3]
[1753988404807,107.89,177.88,177.86,6.48825793]
[1753988405012,3.15,177.87,177.86,3.3]
[1753988405403,104.74,177.88,177.86,8.923]
[1753988405614,3.15,177.88,177.86,3.3]
[1753988405912,378.38,177.94,177.87,3.3]
[1753988405913,104.72,177.89,177.87,3.3]
[1753988406108,104.72,177.89,177.88,9.78825793]
[1753988406509,104.72,177.89,177.88,15.41055793]
[1753988406911,104.74,177.9,177.88,12.11055793]
[1753988407111,104.74,177.9,177.89,3.3]
[1753988407407,107.89,177.9,177.88,9.78825793]
[1753988407611,104.74,177.9,177.89,3.3]
[1753988407913,104.74,177.9,177.89,8.922]
[1753988408214,3.15,177.92,177.9,3.3]
[1753988408412,381.53,177.94,177.88,6.48825793]
[1753988408608,3.15,177.92,177.88,6.48825793]